bitfinex/quotes_ETHUSD_20260131
["timestamp","ask_amount","ask_price","bid_price","bid_amount"]
[1769896289920,13.70039909,2421.5,2419.1,1.35100674]
[1769896289921,13.80279909,2421.0,2419.1,1.35100674]
[1769896290153,14.66879909,2420.9,2419.1,1.35100674]
[1769896290323,14.66879909,2420.9,2419.0,1.03345604]
[1769896290324,14.66879909,2420.9,2417.9,13.49738908]
[1769896290325,0.1024,2420.3,2417.9,13.49738908]
[1769896290523,0.1024,2420.3,2418.2,1.04650509]
[1769896290524,1.03297248,2420.2,2418.2,1.04650509]
[1769896290758,4.13103657,2420.7,2418.8,13.49738908]
[1769896290935,1.03267379,2420.9,2419.7,0.01267828]
[1769896291253,0.1024,2421.5,2419.9,0.01267828]
[1769896291254,1.0325032,2421.3,2419.9,0.01267828]
[1769896291951,0.866,2421.2,2419.7,0.01267828]
[1769896292634,4.99587678,2421.4,2420.0,0.01267828]
[1769896292836,0.1024,2421.8,2420.3,0.01267828]
[1769896293132,1.0322474,2421.9,2420.3,0.01267828]
[1769896293133,1.0322474,2421.9,2420.4,0.01267828]
[1769896293339,1.0322474,2421.9,2419.7,17.62996201]
[1769896293553,1.0322474,2421.9,2419.9,1.86757835]
[1769896293982,1.0322474,2421.9,2419.4,4.13314672]
[1769896293983,13.70039909,2421.4,2419.4,4.13314672]
[1769896294278,13.70039909,2421.4,2419.7,1.03317781]
[1769896294279,0.87867828,2421.3,2419.7,1.03317781]
[1769896294428,0.87867828,2421.3,2419.1,13.4847108]
[1769896294429,0.01267828,2421.0,2418.8,0.01267828]
[1769896294631,0.01267828,2421.0,2418.5,13.49738908]
[1769896294632,0.01267828,2420.7,2418.9,1.03352763]
[1769896294846,0.1024,2420.6,2418.7,1.0335791]
[1769896295077,0.1024,2420.6,2418.7,1.0336129]
[1769896295078,0.01267828,2420.4,2418.7,1.0336129]
[1769896295278,0.866,2420.3,2418.8,1.03356878]
[1769896295481,0.866,2420.3,2418.3,0.51944906]
[1769896295482,0.01267828,2420.0,2418.3,0.51944906]
[1769896295767,0.01267828,2419.5,2418.0,0.0011]
[1769896295963,13.70039909,2419.1,2417.1,0.0011]
[1769896296262,13.70039909,2418.9,2417.2,1.0342544]
[1769896296461,0.01267828,2418.8,2417.2,1.0342544]
[1769896296767,1.04629137,2418.7,2417.1,0.0011]
[1769896296980,1.03361309,2418.7,2417.1,0.0011]
[1769896297268,0.866,2418.6,2417.1,0.0011]
[1769896297432,0.1024,2419.3,2417.6,0.01267828]
[1769896297639,0.1024,2419.3,2417.8,0.01267828]
[1769896297836,0.1024,2419.3,2416.7,4.13780924]
[1769896298038,0.1024,2419.3,2417.2,1.26329418]
[1769896298039,0.01267828,2419.0,2417.2,1.26329418]
[1769896298381,0.01267828,2419.0,2417.7,0.0011]
[1769896298382,0.01267828,2418.9,2417.7,0.0011]
[1769896298536,0.01267828,2418.4,2417.1,0.0011]
[1769896298869,1.03378406,2418.3,2417.5,0.0011]
[1769896301643,4.23675506,2418.8,2417.5,0.0011]
[1769896301644,4.13462333,2418.7,2417.5,0.0011]
[1769896301838,5.00062333,2418.7,2417.5,0.0011]
[1769896302038,4.13462333,2418.7,2417.5,0.0011]
[1769896302235,4.14713067,2419.1,2417.5,0.0011]
[1769896302236,4.13393964,2419.1,2417.5,0.0011]
[1769896303351,0.01267828,2418.9,2417.5,0.0011]
[1769896303667,0.01267828,2418.8,2417.5,0.0011]
[1769896303870,0.11507828,2418.7,2417.5,0.0011]
[1769896304171,0.01267828,2418.6,2417.5,0.0011]
[1769896304538,0.01267828,2418.5,2417.5,0.0011]
[1769896304738,0.01267828,2418.4,2417.5,0.0011]
[1769896305096,0.01267828,2418.4,2417.1,0.0011]
[1769896305097,1.91246234,2418.3,2417.1,0.0011]
[1769896305236,1.89978406,2418.3,2417.1,0.0011]
[1769896305440,1.03378406,2418.3,2417.1,0.0011]
[1769896307040,4.13513625,2418.5,2417.1,0.0011]
[1769896307946,4.1464527,2419.1,2417.5,0.01267828]
[1769896307947,4.13428146,2418.9,2417.5,0.01267828]
[1769896308368,4.13428146,2418.9,2417.3,0.01267828]
[1769896308566,1.03344218,2419.1,2417.8,0.01267828]
[1769896308786,17.4086102,2419.6,2417.8,0.01267828]
[1769896308787,1.03322863,2419.6,2418.0,0.01267828]
[1769896308985,1.03322863,2419.6,2418.5,0.01267828]
[1769896309184,4.13291453,2419.9,2418.6,1.04633411]
[1769896309185,1.03310054,2419.9,2418.6,1.04633411]
[1769896309493,0.867,2420.4,2419.2,0.01267828]
[1769896309791,0.867,2420.4,2418.7,0.51936357]
[1769896309996,0.867,2420.3,2418.6,1.03365583]
[1769896310288,0.867,2420.3,2418.6,1.04633411]
[1769896311396,0.001,2419.2,2418.6,1.04633411]
[1769896312067,0.001,2419.2,2418.7,0.01267828]
[1769896312260,1.03297248,2420.2,2418.7,0.01267828]
[1769896312490,1.03284445,2420.5,2419.2,0.01267828]
[1769896313188,1.03284445,2420.5,2419.1,1.03344218]
[1769896313489,1.03284445,2420.5,2419.2,0.01267828]
[1769896313860,4.23377781,2420.9,2419.2,0.01267828]
[1769896313861,0.1024,2420.9,2419.2,0.01267828]
[1769896314067,4.13016829,2421.3,2419.6,0.01267828]
[1769896314264,4.12994002,2421.4,2420.0,0.01267828]
[1769896314707,4.12994002,2421.4,2420.1,0.01267828]
[1769896315074,4.12994002,2421.4,2419.2,13.39106762]
[1769896315280,4.12994002,2421.4,2419.9,1.03310054]
[1769896315487,4.12994002,2421.4,2420.0,0.01267828]
[1769896315670,4.12994002,2421.4,2420.0,0.53304302]
[1769896316302,4.12994002,2421.4,2420.1,0.01267828]
[1769896316600,4.12994002,2421.4,2420.0,0.52036474]
[1769896316902,14.30761432,2422.7,2420.5,13.39106762]
[1769896317200,4.12789937,2422.6,2420.7,1.03275911]
[1769896317362,0.1024,2422.5,2420.7,1.04543739]
[1769896317670,0.1024,2422.5,2420.6,1.35305287]
[1769896317671,13.37806518,2422.5,2420.6,2.37314759]
[1769896317865,0.1024,2422.2,2420.6,1.03277548]
[1769896318492,0.1024,2422.2,2420.5,1.04551731]
[1769896318682,0.1024,2422.2,2420.1,1.03298021]
[1769896318683,13.39074346,2422.2,2420.1,1.03298021]
[1769896318995,0.01267828,2422.4,2420.4,1.03285455]
[1769896318996,0.1024,2422.0,2420.4,1.03285455]
[1769896319202,0.1024,2421.8,2420.2,0.56854669]
[1769896319401,0.1024,2421.8,2420.2,1.03297219]
[1769896319568,0.1024,2421.8,2420.1,1.04566111]
[1769896319771,0.1024,2421.8,2420.2,1.04564906]
[1769896320090,0.1024,2421.8,2420.3,0.51903876]
[1769896320287,13.37806518,2421.8,2419.8,1.03311039]
[1769896320489,13.37806518,2421.8,2419.9,1.03309785]
[1769896320800,13.27566518,2421.4,2419.6,1.03320407]
[1769896321100,13.37806518,2421.2,2419.4,1.03328649]
[1769896321277,1.03258849,2421.1,2419.6,0.01267828]
[1769896321599,1.89858849,2421.1,2419.7,0.01267828]
[1769896321916,1.89858849,2421.1,2419.1,1.0334068]
[1769896321917,13.27566518,2420.9,2419.1,1.0334068]
[1769896322070,13.27566518,2420.9,2418.7,0.5206314]
[1769896322071,13.39074346,2420.8,2418.7,1.56690031]
[1769896322271,13.28834346,2420.6,2418.7,0.5206314]
[1769896322522,13.37806518,2420.0,2418.1,0.01267828]
[1769896322671,14.14166518,2419.9,2418.1,2.88706601]
[1769896322869,13.37806518,2419.8,2417.9,1.91261098]
[1769896323069,13.37806518,2419.8,2417.9,1.0339327]
[1769896323304,1.03318593,2419.7,2418.1,0.01267828]
[1769896323510,1.03318593,2419.7,2418.5,0.01267828]
[1769896324306,1.03318593,2419.7,2418.4,0.01267828]
[1769896324616,1.03318593,2419.7,2418.2,0.01267828]
[1769896324930,1.03318593,2419.7,2418.7,0.01267828]
[1769896325576,4.1322656,2420.0,2418.8,1.03357036]
[1769896325797,4.1322656,2420.0,2418.4,1.03371254]
[1769896325976,4.1322656,2420.0,2418.5,1.03369809]
[1769896326299,1.03301516,2420.1,2418.8,0.01267828]
[1769896326816,4.99806065,2420.3,2418.8,0.01267828]
[1769896326817,0.866,2421.0,2419.3,0.01267828]
[1769896327110,0.866,2421.0,2419.2,0.01267828]
[1769896327111,14.14166518,2421.0,2419.2,0.01267828]
[1769896327270,0.1024,2420.9,2419.0,0.01267828]
[1769896327469,1.03271645,2420.8,2419.2,1.03339947]
[1769896327888,1.03271645,2420.8,2419.2,1.04607775]
[1769896328074,1.03271645,2420.8,2419.4,0.01267828]
[1769896328274,1.03271645,2420.8,2419.3,0.01267828]
[1769896328498,1.03271645,2420.8,2419.5,0.01267828]
[1769896329407,1.03271645,2420.8,2419.8,0.01267828]
[1769896329607,4.1303666,2421.1,2419.8,1.03314323]
[1769896329809,1.03254584,2421.2,2419.8,1.56492878]
[1769896330015,1.03254584,2421.2,2419.9,0.01267828]
[1769896330303,1.03254584,2421.2,2420.2,0.01267828]
[1769896330884,4.99666204,2421.6,2419.8,1.5522505]
[1769896330885,4.12972173,2421.5,2419.8,1.5522505]
[1769896331218,4.12972173,2421.5,2419.9,1.85591647]
[1769896331417,13.46313849,2421.4,2419.6,1.03320968]
[1769896331713,1.03254584,2421.2,2419.5,1.03327133]
[1769896331919,1.03254584,2421.2,2419.3,5.01209673]
[1769896331920,13.56553849,2421.1,2419.3,1.89933023]
[1769896332284,13.56553849,2421.1,2419.4,1.03330964]
[1769896332489,13.57821677,2421.1,2419.1,1.03341877]
[1769896333044,0.1024,2420.3,2418.5,1.03366501]
[1769896333323,0.866,2420.2,2418.5,1.03366501]
[1769896333616,0.866,2420.2,2418.4,1.03371601]
[1769896333617,14.32913849,2420.2,2418.4,1.03371601]
[1769896333822,1.03301516,2420.1,2418.4,1.03374131]
[1769896334427,1.03301516,2420.1,2418.4,1.03674131]
[1769896334585,1.03301516,2420.1,2418.4,1.64305186]
[1769896334986,13.56553849,2420.0,2417.8,0.01267828]
[1769896335202,13.56553849,2420.0,2417.9,1.03394912]
[1769896335203,0.1024,2419.4,2417.9,1.03394912]
[1769896335409,0.1024,2419.4,2417.7,0.0011]
[1769896335410,0.866,2419.3,2417.8,1.03397246]
[1769896335931,0.866,2419.3,2417.7,0.0011]
[1769896335932,2.00179947,2419.2,2417.7,0.0011]
[1769896336522,15.46493796,2419.2,2417.7,0.0011]
[1769896337217,15.47761624,2419.2,2417.7,0.0011]
[1769896337996,0.01267828,2418.9,2417.7,0.0011]
[1769896339613,0.866,2418.8,2417.7,0.0011]
[1769896340007,1.03361309,2418.7,2417.7,0.0011]
[1769896340342,14.49675158,2418.7,2417.7,0.0011]
[1769896340642,14.50942986,2418.7,2417.7,0.0011]
[1769896340830,14.49675158,2418.7,2417.7,0.0011]
[1769896341032,0.866,2418.6,2417.7,0.0011]
[1769896341633,1.03361309,2418.7,2417.7,0.0011]
[1769896341815,0.866,2418.6,2417.7,0.0011]
[1769896342424,4.13445239,2418.9,2417.7,0.0011]
[1769896342633,0.867,2418.7,2417.7,0.0011]
[1769896344457,1.03365583,2418.6,2417.7,0.0011]
[1769896348141,13.57821677,2418.5,2417.1,0.0011]
[1769896348451,0.1024,2417.9,2417.1,0.0011]
[1769896348635,0.867,2417.8,2417.1,0.0011]
[1769896349247,0.1024,2417.7,2416.5,0.00310197]
[1769896350733,1.03374131,2418.4,2416.8,12.88701951]
[1769896350957,1.03374131,2418.4,2417.1,0.01267828]
[1769896350958,0.9694,2418.3,2417.1,0.01267828]
[1769896351764,0.867,2418.2,2417.1,0.01267828]
[1769896352332,0.867,2418.2,2416.7,0.01267828]
[1769896352554,1.03386956,2418.1,2417.2,0.01267828]
[1769896353641,1.03472672,2418.5,2417.5,12.87434123]
[1769896353854,1.03363267,2418.7,2417.9,0.01267828]
[1769896354159,1.03363267,2418.7,2417.8,0.01267828]
[1769896354359,4.13414096,2418.9,2417.8,0.01267828]
[1769896354566,1.03348491,2419.1,2418.1,0.01267828]
[1769896354735,4.13291709,2419.6,2418.3,0.01267828]
[1769896354736,1.03327133,2419.5,2418.3,0.01267828]
[1769896354934,1.03327133,2419.5,2418.4,0.01267828]
[1769896355134,1.03327133,2419.5,2418.3,0.01267828]
[1769896355359,1.03327133,2419.5,2418.5,0.01267828]
[1769896355766,1.03327133,2419.5,2418.7,0.01267828]
[1769896356266,0.1024,2419.4,2417.9,1.03392989]
[1769896356568,0.1024,2419.4,2417.8,1.03396296]
[1769896356569,1.03335675,2419.3,2417.8,1.03396296]
[1769896357335,0.1024,2419.2,2417.6,2.32276073]
[1769896357536,0.1024,2419.2,2417.6,1.03405878]
[1769896358469,0.1024,2418.6,2417.0,1.03433471]
[1769896358678,1.03378406,2418.3,2416.7,1.03446849]
[1769896359375,1.03378406,2418.3,2416.7,14.82049913]
[1769896359670,1.03378406,2418.3,2416.8,15.69581406]
[1769896360468,1.03378406,2418.3,2417.8,0.0011]
[1769896360966,1.13609857,2418.5,2417.8,0.0011]
[1769896361156,1.13609857,2418.5,2417.5,0.0011]
[1769896361157,0.01267828,2418.4,2416.9,1.03438288]
[1769896361365,0.01267828,2418.3,2417.0,2.08550502]
[1769896361563,1.14877685,2418.5,2417.0,2.08550502]
[1769896361760,0.88737109,2418.4,2417.0,2.08550502]
[1769896361966,1.14877685,2418.5,2417.0,2.08550502]
[1769896362277,0.88736149,2418.4,2417.0,2.08550502]
[1769896362572,0.88736149,2418.3,2417.1,0.31198879]
[1769896362779,1.03386956,2418.1,2417.1,0.31198879]
[1769896362981,1.03386956,2418.1,2417.0,2.08550502]
[1769896363348,0.88935535,2418.0,2416.8,1.03439473]
[1769896363548,1.03386956,2418.1,2416.8,1.03439473]
[1769896363868,0.8893814,2418.0,2416.9,1.03437407]
[1769896364041,1.03386956,2418.1,2416.8,1.03440132]
[1769896364242,3.02404662,2418.1,2416.8,1.03441896]
[1769896364443,0.88939458,2418.0,2416.6,0.0011]
[1769896364753,1.03399784,2417.8,2416.6,0.0011]
[1769896365095,0.88939458,2417.7,2416.6,0.0011]
[1769896365679,0.88939458,2417.6,2416.6,0.0011]
[1769896365984,0.89002718,2417.5,2416.6,0.0011]
[1769896366155,2.13478032,2417.8,2416.6,0.0011]
[1769896366357,0.89005115,2417.7,2416.6,0.0011]
[1769896366555,0.89005115,2417.6,2416.6,0.0011]
[1769896366777,1.03416894,2417.4,2416.1,1.0347028]
[1769896366978,0.88992636,2417.3,2416.1,1.0347028]
[1769896367183,1.03416894,2417.4,2416.1,1.0347028]
[1769896367381,1.03408338,2417.6,2416.2,13.31171946]
[1769896367559,1.03408338,2417.6,2416.4,13.29904118]
[1769896368257,1.03408338,2417.6,2416.7,0.003]
[1769896368883,4.13633355,2417.8,2416.7,0.003]
[1769896369086,0.88964397,2417.7,2416.7,0.003]
[1769896369277,1.10078248,2417.6,2416.7,0.003]
[1769896369862,1.20318248,2417.5,2416.7,0.003]
[1769896370187,2.85742645,2417.4,2415.8,6.5940424]
[1769896370368,0.88964397,2417.3,2415.8,6.5940424]
[1769896370569,0.88964397,2417.2,2415.9,1.0348058]
[1769896370785,0.88964397,2417.1,2415.8,6.59404442]
[1769896370972,1.03434009,2417.0,2415.8,7.68008098]
[1769896371172,1.03434009,2417.0,2415.8,5.5592223]
[1769896371173,0.88943586,2416.9,2415.8,5.5592223]
[1769896371363,1.03434009,2417.0,2415.9,0.01267828]
[1769896371564,0.88882681,2416.9,2415.8,5.5592223]
[1769896371764,1.98960929,2416.9,2415.8,5.5592223]
[1769896371975,0.88882681,2416.8,2415.8,5.5592223]
[1769896372164,0.88882681,2416.7,2415.8,5.5592223]
[1769896372378,2.13512257,2417.0,2416.0,0.01267828]
[1769896372581,1.03432977,2417.1,2416.6,0.01267828]
[1769896372895,4.23908443,2417.4,2416.5,0.01267828]
[1769896373097,0.88810409,2417.3,2416.9,0.0011]
[1769896373394,4.23908443,2417.4,2416.9,0.0011]
[1769896373591,0.88796799,2417.3,2416.6,0.0011]
[1769896373797,0.88796799,2417.2,2416.6,0.0011]
[1769896374001,4.23908443,2417.4,2416.6,0.0011]
[1769896374299,1.03416894,2417.4,2416.7,0.01267828]
[1769896374466,1.03415664,2417.5,2416.9,0.01267828]
[1769896374671,1.03415664,2417.5,2416.7,0.01267828]
[1769896374878,1.03415664,2417.5,2416.8,0.01267828]
[1769896375085,1.03415664,2417.5,2416.7,0.01267828]
[1769896375267,1.03415664,2417.5,2416.9,0.01267828]
[1769896376398,1.13639784,2417.8,2417.1,0.01267828]
[1769896376603,1.13639784,2417.8,2417.0,0.01267828]
[1769896377819,1.13639784,2417.8,2416.9,0.01267828]
[1769896378106,1.13639784,2417.8,2416.7,0.01267828]
[1769896378682,1.13639784,2417.8,2416.7,1.04713307]
[1769896378881,0.1024,2417.8,2417.0,1.04701121]
[1769896379101,1.10078248,2418.1,2417.3,0.01267828]
[1769896379102,1.0338887,2418.1,2417.3,0.01267828]
[1769896379594,1.0338887,2418.1,2416.7,4.15048355]
[1769896379795,1.0338887,2418.1,2417.0,1.03433067]
[1769896380117,0.88778404,2418.0,2416.7,4.15049352]
[1769896380321,1.0338887,2418.1,2416.8,1.03439983]
[1769896380625,1.0338887,2418.1,2417.0,1.04701665]
[1769896380798,1.0338887,2418.1,2417.1,0.51970553]
[1769896381319,4.13547826,2418.3,2417.1,0.51970553]
[1769896381523,4.13547826,2418.3,2416.6,0.0011]
[1769896381524,13.19461062,2418.0,2416.6,0.0011]
[1769896381729,13.19461062,2417.8,2416.6,0.0011]
[1769896381898,0.88770587,2417.7,2416.6,0.0011]
[1769896382411,0.1024,2418.1,2417.1,1.04697353]
[1769896383213,1.03376974,2418.4,2417.4,14.3458884]
[1769896383424,1.03376974,2418.4,2417.6,0.01267828]
[1769896383726,1.03361309,2418.8,2417.8,0.01267828]
[1769896384837,1.03333553,2419.4,2418.6,0.01267828]
[1769896385036,1.03333553,2419.4,2418.5,0.01267828]
[1769896385231,1.96778248,2419.9,2419.1,1.03344218]
[1769896385232,1.0331297,2419.9,2419.1,1.03344218]
[1769896385531,1.10078248,2420.2,2419.2,0.01267828]
[1769896385532,1.03299682,2420.2,2419.2,0.01267828]
[1769896386033,1.03299682,2420.2,2419.3,0.01267828]
[1769896386230,1.03275911,2420.7,2419.3,0.01267828]
[1769896386421,0.867,2420.6,2419.4,0.01267828]
[1769896386598,1.03275911,2420.7,2419.5,0.01267828]
[1769896386800,1.03258849,2421.1,2419.8,0.01267828]
[1769896387039,1.03258849,2421.1,2419.9,0.01267828]
[1769896387240,1.03258849,2421.1,2420.1,0.01267828]
[1769896387444,1.03258849,2421.1,2420.0,1.04573613]
[1769896387934,1.03258849,2421.1,2420.2,0.01267828]
[1769896388138,1.03258849,2421.1,2420.0,1.04573613]
[1769896388313,1.03258849,2421.1,2420.1,0.01267828]
[1769896388853,0.001,2421.3,2420.5,0.01267828]
[1769896389019,1.03350483,2421.3,2420.5,0.01267828]
[1769896389213,1.03350483,2421.3,2420.6,0.01267828]
[1769896389524,1.03211956,2422.2,2420.9,0.01267828]
[1769896389723,15.00653506,2422.2,2420.3,4.13159457]
[1769896389925,15.00653506,2422.2,2420.4,1.0455401]
[1769896390118,15.00653506,2422.2,2420.6,1.04545955]
[1769896390305,0.1024,2422.1,2420.6,1.04545955]
[1769896390526,1.03211956,2422.2,2420.6,1.04545955]
[1769896390527,1.03211956,2422.2,2420.8,0.01267828]
[1769896390715,0.1024,2422.1,2420.8,0.01267828]
[1769896391126,1.03211956,2422.2,2421.1,0.01267828]
[1769896391345,1.03203434,2422.4,2421.3,1.04518085]
[1769896391632,1.03203434,2422.4,2421.3,0.01267828]
[1769896392023,1.03203434,2422.4,2421.4,0.01267828]
[1769896392904,0.1024,2422.8,2421.7,0.01267828]
[1769896393107,4.99223753,2423.6,2421.9,0.01267828]
[1769896393326,4.99223753,2423.6,2421.8,1.0449484]
[1769896393507,0.1024,2423.5,2421.9,1.03224562]
[1769896393708,18.96665303,2423.6,2421.9,1.03223968]
[1769896394008,4.99223753,2423.6,2422.3,0.01267828]
[1769896394408,0.1024,2423.5,2422.0,0.01267828]
[1769896394611,0.1024,2423.5,2421.9,0.01267828]
[1769896394612,14.0768155,2423.5,2421.9,0.01267828]
[1769896394814,14.0768155,2423.5,2421.8,0.01267828]
[1769896395158,14.0768155,2423.5,2422.0,0.01267828]
[1769896395341,13.9744155,2423.1,2421.0,0.01267828]
[1769896395527,0.1024,2422.4,2420.8,0.01267828]
[1769896395726,0.1024,2422.4,2421.1,0.01267828]
[1769896396227,14.0768155,2422.4,2420.6,1.04546478]
[1769896396546,0.01267828,2422.9,2421.2,1.03254456]
[1769896396547,13.9744155,2422.9,2421.2,1.03254456]
[1769896396715,0.1024,2422.8,2421.2,1.04522284]
[1769896396909,0.1024,2422.8,2421.4,0.01267828]
[1769896397144,0.1024,2422.8,2421.3,0.01267828]
[1769896397351,0.1024,2422.8,2421.2,1.04522284]
[1769896397645,0.1024,2422.6,2421.2,1.04522284]
[1769896397846,0.1024,2422.6,2421.2,0.01267828]
[1769896398050,0.1024,2422.6,2421.1,1.03258191]
[1769896398218,0.1024,2422.6,2421.0,0.01267828]
[1769896398219,14.0768155,2422.6,2421.0,0.01267828]
[1769896398419,14.0768155,2422.6,2420.4,12.68568132]
[1769896398420,14.08949378,2422.6,2420.4,1.04553012]
[1769896398638,0.1024,2422.1,2420.4,1.04553012]
[1769896398948,14.8404155,2422.0,2420.4,0.01267828]
[1769896399137,0.866,2422.0,2420.6,1.03279871]
[1769896399445,1.0322474,2421.9,2420.5,0.01267828]
[1769896399622,14.0768155,2421.8,2420.0,0.01267828]
[1769896399832,14.08949378,2421.8,2419.5,13.70624891]
[1769896400156,0.1024,2421.5,2419.8,1.04581434]
[1769896400441,14.0768155,2421.5,2419.6,0.01267828]
[1769896400647,14.0768155,2421.5,2419.5,0.01267828]
[1769896400648,0.1024,2420.9,2419.4,0.01267828]
[1769896400867,0.9684,2420.9,2419.4,0.01267828]
[1769896401147,0.9684,2420.9,2419.5,0.01267828]
[1769896401558,0.1024,2420.7,2419.5,0.01267828]
[1769896402049,1.03271645,2420.8,2419.8,0.01267828]
[1769896402253,1.03271645,2420.8,2419.9,0.01267828]
[1769896402551,1.03271645,2420.8,2419.7,0.01267828]
[1769896402552,1.03263114,2421.0,2419.6,0.01267828]
[1769896402857,0.1024,2420.9,2419.5,0.01267828]
[1769896403024,0.1024,2420.9,2418.9,0.01267828]
[1769896403025,14.0768155,2420.9,2418.9,0.01267828]
[1769896403231,14.08949378,2420.9,2418.9,0.01267828]
[1769896403430,0.1024,2420.7,2418.9,1.04617954]
[1769896403637,0.866,2420.6,2418.9,1.56676446]
[1769896403850,0.866,2420.6,2418.9,0.52058492]
[1769896404046,0.866,2420.6,2418.6,0.88167828]
[1769896404047,0.1024,2419.9,2418.6,0.003]
[1769896404419,14.0768155,2419.9,2418.6,0.003]
[1769896404658,13.9744155,2420.4,2418.9,1.03352097]
[1769896404822,0.1024,2420.3,2418.9,1.04619925]
[1769896405021,14.0768155,2420.3,2418.6,0.003]
[1769896405230,13.9744155,2420.3,2418.6,1.03665019]
[1769896405444,14.0768155,2420.2,2418.6,0.003]
[1769896405653,0.1024,2420.0,2418.6,0.003]
[1769896405946,1.03301516,2420.1,2418.6,0.003]
[1769896406144,1.03301516,2420.1,2418.7,0.01267828]
[1769896406345,1.03301516,2420.1,2418.6,0.01567828]
[1769896406520,1.03301516,2420.1,2418.7,0.01267828]
[1769896406721,1.03301516,2420.1,2419.2,0.01267828]
[1769896406936,1.03301516,2420.1,2419.1,0.01267828]
[1769896406937,1.03301516,2420.1,2418.8,0.01267828]
[1769896407146,1.03301516,2420.1,2418.9,0.01267828]
[1769896407348,1.89884445,2420.6,2419.1,0.01267828]
[1769896407543,4.2339485,2420.5,2419.2,1.03339947]
[1769896407848,4.2339485,2420.5,2419.2,1.55264507]
[1769896408043,4.2339485,2420.5,2419.3,0.01267828]
[1769896408249,4.2339485,2420.5,2419.4,0.01267828]
[1769896408250,4.1315485,2420.5,2419.4,0.01267828]
[1769896408452,4.1315485,2420.5,2419.5,0.01267828]
[1769896408757,1.03267379,2420.9,2419.4,0.01267828]
[1769896408926,1.03267379,2420.9,2419.6,0.01267828]
[1769896409246,1.03267379,2420.9,2419.8,0.01267828]
[1769896409447,1.03267379,2420.9,2419.9,0.01267828]
[1769896409849,4.13014843,2421.3,2420.0,1.03305785]
[1769896410050,4.13014843,2421.3,2420.0,1.04573613]
[1769896410250,4.13014843,2421.3,2420.1,0.53174286]
[1769896410450,4.13014843,2421.3,2420.1,0.51906458]
[1769896410749,0.1024,2421.2,2419.9,1.03309655]
[1769896411064,4.13014843,2421.3,2419.9,1.03309655]
[1769896411225,4.13014843,2421.3,2419.9,1.04577483]
[1769896411422,4.13014843,2421.3,2420.0,0.51909806]
[1769896411628,0.1024,2421.2,2419.7,1.03318315]
[1769896411934,1.03258849,2421.1,2419.8,1.03314323]
[1769896412136,1.03258849,2421.1,2419.5,0.866]
[1769896412450,1.03258849,2421.1,2419.8,0.01267828]
[1769896412654,1.03241792,2421.5,2420.2,0.01267828]
[1769896412855,1.89838332,2421.6,2420.6,0.01267828]
[1769896413059,1.89838332,2421.6,2420.3,0.01267828]
[1769896413231,1.89838332,2421.6,2420.5,0.01267828]
[1769896413232,1.03238332,2421.6,2420.5,0.01267828]
[1769896413438,1.03238332,2421.6,2419.0,9.16876138]
[1769896413439,1.03238332,2421.6,2419.6,16.81844817]
[1769896413639,15.00679882,2421.6,2420.0,0.01267828]
[1769896413954,15.00679882,2421.6,2420.1,0.01267828]
[1769896414154,15.00679882,2421.6,2420.1,1.03299621]
[1769896414362,15.00679882,2421.6,2420.1,1.55204195]
[1769896415045,15.00679882,2421.6,2420.1,1.56472023]
[1769896415426,1.03238332,2421.6,2420.1,1.56472023]
[1769896415629,1.03238332,2421.6,2420.1,1.55204195]
[1769896415826,1.03238332,2421.6,2420.1,1.03299621]
[1769896416049,0.1024,2421.7,2420.1,1.03299621]
[1769896416255,0.1024,2421.7,2420.2,0.01267828]
[1769896417058,0.1024,2421.9,2420.3,0.01267828]
[1769896417458,13.4676565,2421.9,2420.1,1.03299621]
[1769896417963,13.4676565,2421.9,2420.1,1.04567449]
[1769896418163,0.1024,2421.7,2420.1,1.04567449]
[1769896418843,0.1024,2421.7,2420.3,0.01267828]
[1769896419357,0.1024,2421.7,2420.2,0.01267828]
[1769896419358,14.39754653,2421.8,2420.2,0.01267828]
[1769896419562,14.39754653,2421.8,2420.1,1.03299621]
[1769896419764,14.39754653,2421.8,2420.1,1.04567449]
[1769896420461,14.39754653,2421.8,2420.1,1.03299621]
[1769896420766,14.35087159,2421.7,2419.9,1.03306957]
[1769896420960,13.3652565,2421.5,2419.9,0.51784138]
[1769896421161,13.3652565,2421.5,2419.6,0.87867828]
[1769896421162,13.4676565,2421.4,2419.6,0.87867828]
[1769896421365,13.4676565,2421.4,2419.3,1.03332478]
[1769896421366,13.4676565,2421.2,2419.3,1.03332478]
[1769896421563,14.07406206,2421.0,2419.2,0.5192456]
[1769896421759,14.07406206,2421.0,2419.3,1.03335548]
[1769896421959,14.07406206,2421.0,2419.6,0.01267828]
[1769896421960,0.1024,2421.0,2419.6,0.01267828]
[1769896422272,0.1024,2421.0,2420.0,0.0011]
[1769896422440,1.03267379,2420.9,2419.6,1.03322863]
[1769896422635,1.03267379,2420.9,2419.7,0.51788713]
[1769896422836,1.03267379,2420.9,2419.7,0.53056541]
[1769896423043,1.03267379,2420.9,2419.9,0.01267828]
[1769896423569,1.03267379,2420.9,2420.0,0.01267828]
[1769896424561,1.03258849,2421.1,2420.1,1.03301516]
[1769896424772,1.03258849,2421.1,2420.2,0.51777929]
[1769896424969,1.03258849,2421.1,2420.3,0.01267828]
[1769896425270,1.03258849,2421.1,2420.2,0.53045757]
[1769896425480,1.03258849,2421.1,2420.0,4.14477777]
[1769896425481,1.03258849,2421.1,2419.9,0.01267828]
[1769896425690,1.03258849,2421.1,2420.0,1.04572441]
[1769896426042,1.03258849,2421.1,2419.9,1.0330712]
[1769896426276,1.03258849,2421.1,2420.0,1.03305422]
[1769896426572,4.13024081,2421.2,2419.7,2.41705481]
[1769896426777,14.07406206,2421.0,2419.7,0.866]
[1769896426951,0.88642762,2420.9,2419.7,0.866]
[1769896427274,14.07406206,2421.0,2419.7,0.866]
[1769896427458,0.88715481,2420.9,2419.7,0.866]
[1769896427665,14.07406206,2421.0,2419.7,0.866]
[1769896427974,0.88715432,2420.9,2419.7,1.89918313]
[1769896428150,0.88770512,2420.8,2419.7,0.866]
[1769896428470,1.03267379,2420.9,2419.7,0.866]
[1769896428640,0.88771144,2420.8,2419.7,0.866]
[1769896428838,1.03267379,2420.9,2419.7,0.866]
[1769896429068,0.88771386,2420.8,2419.7,0.866]
[1769896429269,1.03267379,2420.9,2419.7,0.866]
[1769896429474,0.88790796,2420.8,2419.7,0.866]
[1769896429654,1.03267379,2420.9,2419.7,0.866]
[1769896429846,0.88790809,2420.8,2419.7,0.866]
[1769896430165,0.21595922,2420.8,2419.7,0.866]
[1769896430546,1.03275911,2420.7,2419.7,0.866]
[1769896431939,1.03275911,2420.7,2419.5,1.03323882]
[1769896432546,1.03275911,2420.7,2419.4,0.003]
[1769896432547,15.10690651,2420.5,2419.4,0.003]
[1769896432753,14.85964289,2420.4,2419.4,0.003]